bitfinex/quotes_SOLUSD_20250924
["timestamp","ask_amount","ask_price","bid_price","bid_amount"]
[1758678160217,26.0,216.26,216.25,0.71]
[1758678161090,26.0,216.26,216.21,4.62513184]
[1758678161301,26.0,216.25,216.22,0.71]
[1758678161708,26.0,216.25,216.23,0.71]
[1758678162107,26.0,216.25,216.24,0.71]
[1758678163416,32.85114434,216.25,216.19,0.71]
[1758678164118,26.0,216.22,216.19,0.71]
[1758678164430,2.22678088,216.21,216.17,0.91]
[1758678164721,2.22678088,216.21,216.18,0.71]
[1758678165629,2.22678088,216.21,216.19,0.71]
[1758678165799,26.0,216.2,216.17,4.82595646]
[1758678166521,26.0,216.2,216.18,0.71]
[1758678166709,26.0,216.21,216.18,0.71]
[1758678167221,26.0,216.2,216.19,0.71]
[1758678170019,26.0,216.21,216.19,0.71]
[1758678170925,11.56021287,216.26,216.19,0.71]
[1758678170926,3.77821838,216.28,216.19,5.33555614]
[1758678171128,26.0,216.25,216.2,0.66]
[1758678171513,26.0,216.25,216.21,0.66]
[1758678171711,0.23,216.24,216.18,5.28575295]
[1758678172020,30.62447614,216.25,216.19,0.66]
[1758678173435,30.62447614,216.25,216.19,5.28547786]
[1758678175636,30.62447614,216.25,216.2,0.66]
[1758678176223,30.62447614,216.25,216.21,0.66]
[1758678176913,2.22678088,216.22,216.17,0.2]
[1758678177112,2.45678088,216.22,216.17,0.86]
[1758678177631,2.22678088,216.22,216.17,0.86]
[1758678177815,2.22678088,216.22,216.17,0.2]
[1758678178014,2.45678088,216.22,216.17,0.2]
[1758678178622,4.62513297,216.21,216.17,0.2]
[1758678179423,4.62513297,216.21,216.17,0.86]
[1758678180218,4.85513297,216.21,216.17,0.2]
[1758678180413,0.23,216.21,216.17,0.2]
[1758678180619,39.59559401,216.24,216.18,5.28556958]
[1758678180620,26.0,216.24,216.18,5.28556958]
[1758678180835,26.0,216.23,216.19,0.66]
[1758678181415,26.0,216.25,216.19,0.66]
[1758678181638,4.62556958,216.27,216.19,0.66]
[1758678181833,3.77411616,216.28,216.19,0.66]
[1758678182138,29.45850305,216.27,216.19,0.66]
[1758678182439,36.75235046,216.3,216.19,0.66]
[1758678182440,26.0,216.25,216.19,0.66]
[1758678183143,26.0,216.27,216.2,4.6253469]
[1758678183342,26.0,216.25,216.21,0.66]
[1758678183546,26.0,216.25,216.22,0.66]
[1758678183843,26.23,216.25,216.2,4.6253469]
[1758678184218,2.45678088,216.24,216.18,4.62574951]
[1758678185347,7.08136735,216.24,216.18,5.28574951]
[1758678185636,26.0,216.21,216.18,0.66]
[1758678186740,26.0,216.21,216.17,0.2]
[1758678187443,26.23,216.21,216.17,0.2]
[1758678187621,3.46807224,216.2,216.17,0.2]
[1758678188445,8.09359984,216.2,216.17,0.2]
[1758678188643,30.62527122,216.21,216.17,0.86]
[1758678188945,3.46831616,216.2,216.17,0.86]
[1758678190052,3.46831616,216.2,216.17,4.82589042]
[1758678190252,11.55948094,216.28,216.18,0.66]
[1758678190253,35.25006806,216.27,216.18,0.66]
[1758678190543,3.46843822,216.26,216.18,0.66]
[1758678190736,3.46843822,216.25,216.18,0.66]
[1758678190923,3.46843822,216.24,216.18,0.66]
[1758678191124,3.46843822,216.23,216.18,0.66]
[1758678191319,30.85388288,216.27,216.19,4.62556084]
[1758678191531,3.46842826,216.26,216.2,0.66]
[1758678191842,3.46842629,216.25,216.2,0.66]
[1758678192040,3.46842629,216.24,216.21,0.66]
[1758678192220,3.46842629,216.23,216.21,0.66]
[1758678192420,30.85388288,216.27,216.21,0.66]
[1758678192634,3.46843778,216.26,216.21,0.66]
[1758678192835,3.46843778,216.25,216.19,4.62556084]
[1758678193123,3.46843778,216.24,216.21,0.66]
[1758678193440,26.0,216.3,216.22,4.62491906]
[1758678193633,3.46750154,216.29,216.23,0.72]
[1758678193822,2.22678088,216.34,216.23,0.72]
[1758678194142,26.0,216.32,216.23,0.72]
[1758678194842,34.39863001,216.33,216.24,16.18571956]
[1758678195044,30.62257616,216.33,216.25,0.72]
[1758678196620,35.99079828,216.33,216.25,0.72]
[1758678196849,26.0,216.28,216.21,11.56165898]
[1758678197038,26.23,216.28,216.21,11.56165898]
[1758678197236,26.23,216.28,216.2,0.72]
[1758678197946,26.0,216.24,216.18,4.62577481]
[1758678198330,0.23,216.23,216.17,0.2]
[1758678198944,30.62491906,216.22,216.17,0.2]
[1758678199148,30.85491906,216.22,216.17,0.2]
[1758678199347,26.0,216.2,216.17,0.2]
[1758678201654,1.65567818,216.19,216.17,0.2]
[1758678202450,1.42567818,216.19,216.17,0.2]
[1758678202652,6.2814407,216.19,216.17,0.2]
[1758678203652,0.23,216.18,216.17,0.2]
[1758678204034,4.62577481,216.18,216.17,0.2]
[1758678212034,30.62577481,216.18,216.17,0.2]
[1758678215042,26.0,216.18,216.17,0.2]
[1758678215361,27.42567818,216.19,216.17,0.2]
[1758678215538,32.05124049,216.19,216.17,0.2]
[1758678221161,27.42567818,216.19,216.17,0.86]
[1758678221865,26.0,216.19,216.18,0.66]
[1758678222644,1.85524455,216.22,216.18,0.66]
[1758678222970,27.42567818,216.23,216.18,0.66]
[1758678223263,26.0,216.22,216.18,0.66]
[1758678223963,26.0,216.22,216.18,5.28569443]
[1758678224162,26.0,216.22,216.19,0.66]
[1758678224468,26.0,216.22,216.2,0.66]
[1758678226252,26.0,216.22,216.17,0.2]
[1758678226552,26.0,216.22,216.18,0.66]
[1758678226755,26.0,216.23,216.19,0.66]
[1758678226965,1.42567818,216.22,216.2,0.66]
[1758678227546,2.08498644,216.25,216.21,0.66]
[1758678227547,1.42567818,216.24,216.21,0.66]
[1758678227757,1.42567818,216.26,216.21,0.66]
[1758678228067,6.25158922,216.28,216.22,4.62491906]
[1758678228257,26.0,216.27,216.22,4.62491906]
[1758678228578,26.0,216.27,216.23,0.66]
[1758678229193,4.62491906,216.3,216.23,0.66]
[1758678229672,159.9,216.31,216.23,0.66]
[1758678230370,159.9,216.31,216.24,16.18571956]
[1758678230671,159.9,216.31,216.25,0.72]
[1758678231078,26.0,216.31,216.25,0.72]
[1758678231653,13.90594943,216.36,216.25,0.72]
[1758678231973,1.42567818,216.37,216.25,0.72]
[1758678232478,1.42567818,216.35,216.26,16.18422268]
[1758678232785,1.42567818,216.35,216.27,0.72]
[1758678232970,26.0,216.35,216.27,0.72]
[1758678233145,1.42567818,216.38,216.27,0.72]
[1758678233577,26.0,216.36,216.27,0.72]
[1758678234653,26.0,216.36,216.28,16.18272608]
[1758678234860,26.0,216.36,216.29,0.72]
[1758678235883,26.0,216.36,216.3,16.18122976]
[1758678236171,26.0,216.36,216.31,0.72]
[1758678236371,26.0,216.36,216.32,0.72]
[1758678237652,26.0,216.36,216.32,5.34277062]
[1758678237861,26.0,216.36,216.33,0.72]
[1758678238448,26.0,216.36,216.32,4.62277062]
[1758678238654,26.0,216.36,216.34,0.72]
[1758678239173,26.0,216.36,216.32,4.62277062]
[1758678239557,26.0,216.36,216.32,5.34277062]
[1758678239774,27.42567818,216.36,216.32,5.34277062]
[1758678240274,27.42567818,216.36,216.32,4.62277062]
[1758678240874,27.42567818,216.36,216.31,4.62299477]
[1758678241077,27.42567818,216.36,216.31,5.34299477]
[1758678241462,27.65567818,216.36,216.31,5.34299477]
[1758678241874,26.0,216.36,216.29,11.55830794]
[1758678242175,26.0,216.36,216.32,0.72]
[1758678243268,26.0,216.36,216.33,5.34247579]
[1758678243474,26.0,216.36,216.34,0.72]
[1758678243865,26.0,216.36,216.35,0.72]
[1758678244176,32.27760612,216.36,216.26,0.72]
[1758678244377,1.42567818,216.33,216.26,0.72]
[1758678244585,1.65567818,216.33,216.26,0.72]
[1758678245094,27.65567818,216.33,216.26,0.72]
[1758678245262,4.85285883,216.32,216.24,0.72]
[1758678246572,0.23,216.32,216.24,0.72]
[1758678246887,1.42567818,216.33,216.24,0.72]
[1758678247672,26.0,216.32,216.25,4.62427745]
[1758678247876,26.0,216.32,216.26,0.72]
[1758678248882,26.0,216.32,216.27,4.62384981]
[1758678249090,26.23,216.32,216.27,4.62384981]
[1758678249774,26.23,216.32,216.27,5.34384981]
[1758678250175,13.59559401,216.35,216.28,0.72]
[1758678250176,27.65567818,216.35,216.28,0.72]
[1758678250380,27.42567818,216.35,216.28,0.72]
[1758678250684,3.70091481,216.39,216.28,0.72]
[1758678250685,1.42567818,216.37,216.28,0.72]
[1758678250882,1.42567818,216.37,216.29,16.18197789]
[1758678250883,26.0,216.36,216.29,16.18197789]
[1758678251183,26.0,216.36,216.3,0.72]
[1758678252478,26.23,216.36,216.3,0.72]
[1758678252989,26.0,216.35,216.31,4.62299477]
[1758678253689,26.0,216.35,216.31,5.32299477]
[1758678254478,26.0,216.35,216.29,11.55855564]
[1758678254666,26.0,216.35,216.3,0.7]
[1758678255784,0.23,216.34,216.28,0.7]
[1758678255994,0.23,216.34,216.27,0.7]
[1758678256282,134.13,216.34,216.27,0.7]
[1758678256876,2.45713616,216.33,216.25,41.36427745]
[1758678257559,26.0,216.31,216.25,41.36427745]
[1758678257765,0.23,216.32,216.25,41.36427745]
[1758678257766,4.85282717,216.32,216.25,16.88497109]
[1758678258190,4.85282717,216.32,216.25,5.32427745]
[1758678259990,0.23,216.32,216.25,16.88497109]
[1758678260365,0.23,216.32,216.25,16.18497109]
[1758678260687,0.23,216.32,216.26,0.67]
[1758678261598,26.0,216.33,216.26,0.67]
[1758678261771,26.0,216.33,216.27,16.18347435]
[1758678261971,26.0,216.33,216.28,0.67]
[1758678262184,26.0,216.33,216.29,0.67]
[1758678263000,26.0,216.33,216.3,4.6232085]
[1758678264483,0.23,216.32,216.25,5.29427745]
[1758678264688,28.22713616,216.33,216.26,0.67]
[1758678264884,26.0,216.33,216.26,0.67]
[1758678265082,133.9,216.34,216.27,16.18347435]
[1758678265390,133.9,216.34,216.28,0.67]
[1758678266502,133.9,216.34,216.29,16.18197789]
[1758678266684,133.9,216.34,216.3,0.67]
[1758678267197,134.13,216.34,216.29,52.20197789]
[1758678267693,134.13,216.34,216.29,52.87197789]
[1758678268185,133.9,216.34,216.29,52.87197789]
[1758678268576,133.9,216.34,216.3,0.67]
[1758678270187,133.9,216.34,216.31,4.62299477]
[1758678270894,26.0,216.31,216.24,0.67]
[1758678271198,2.22713616,216.29,216.24,0.67]
[1758678271397,2.22713616,216.29,216.25,0.67]
[1758678271604,28.22713616,216.31,216.26,0.67]
[1758678272295,28.45713616,216.31,216.24,0.67]
[1758678273389,28.45713616,216.31,216.25,4.62427745]
[1758678276879,28.45713616,216.31,216.25,5.29427745]
[1758678277506,0.23,216.3,216.25,4.62427745]
[1758678277803,28.22713616,216.31,216.25,5.29427745]
[1758678279994,133.9,216.3,216.25,5.29427745]
[1758678281822,134.13,216.3,216.19,49.12780424]
[1758678281998,2.22713616,216.26,216.2,4.6253469]
[1758678282199,2.22713616,216.26,216.19,41.29552649]
[1758678282401,26.0,216.27,216.21,0.67]
[1758678283502,159.9,216.3,216.21,0.67]
[1758678283894,159.9,216.3,216.22,16.18721671]
[1758678284098,159.9,216.3,216.23,36.0]
[1758678284099,0.23,216.29,216.23,36.0]
[1758678284601,2.22713616,216.29,216.24,0.67]
[1758678286610,2.45713616,216.29,216.25,4.62427745]
[1758678287303,2.22713616,216.29,216.25,4.62427745]
[1758678287505,26.0,216.3,216.25,5.29427745]
[1758678287689,26.0,216.3,216.25,16.85497109]
[1758678287887,26.0,216.3,216.26,0.67]
[1758678288106,2.45713616,216.32,216.26,0.67]
[1758678288707,2.45713616,216.32,216.27,4.62384981]
[1758678289782,2.22713616,216.32,216.28,0.67]
[1758678290899,28.22713616,216.32,216.29,4.62342225]
[1758678291112,28.45713616,216.32,216.29,4.62342225]
[1758678291297,28.22713616,216.32,216.29,4.62342225]
[1758678291609,2.22713616,216.32,216.29,4.62342225]
[1758678292201,2.22713616,216.32,216.29,0.68]
[1758678292517,2.22713616,216.33,216.3,0.68]
[1758678294014,2.22713616,216.33,216.3,5.30303716]
[1758678298198,2.45713616,216.33,216.3,4.62303716]
[1758678298417,0.23,216.32,216.28,40.62349743]
[1758678298614,2.22713616,216.31,216.28,40.62349743]
[1758678300408,2.45713616,216.31,216.27,40.62384981]
[1758678300599,2.22713616,216.31,216.27,40.62384981]
[1758678300803,28.22713616,216.32,216.28,0.68]
[1758678301119,2.22713616,216.32,216.29,0.68]
[1758678301306,26.0,216.32,216.29,0.68]
[1758678301843,26.0,216.31,216.29,0.68]
[1758678302702,26.0,216.31,216.29,5.30340578]
[1758678303439,26.0,216.31,216.29,4.62340578]
[1758678304126,2.45713616,216.31,216.24,0.68]
[1758678304330,26.0,216.3,216.25,35.98]
[1758678304517,26.0,216.3,216.25,36.66]
[1758678304845,26.0,216.3,216.26,5.30394024]
[1758678305012,28.45713616,216.31,216.26,5.30394024]
[1758678305212,33.08018833,216.31,216.26,5.30394024]
[1758678306141,33.08018833,216.31,216.26,0.68]
[1758678306356,2.22713616,216.29,216.22,0.68]
[1758678306539,2.22713616,216.27,216.22,0.68]
[1758678306853,2.22713616,216.27,216.23,0.68]
[1758678307212,28.22713616,216.27,216.2,4.6253469]
[1758678307415,2.22713616,216.25,216.21,35.98]
[1758678307720,2.22713616,216.25,216.2,5.3053469]
[1758678307934,2.22713616,216.25,216.21,36.66]
[1758678308336,2.22713616,216.25,216.21,41.28505305]
[1758678309368,2.22713616,216.25,216.21,0.68]
[1758678309532,2.22713616,216.25,216.21,36.66]
[1758678310032,2.22713616,216.25,216.21,5.30504938]
[1758678310239,6.85148929,216.25,216.2,35.98]
[1758678310461,6.85148929,216.25,216.2,5.29529882]
[1758678310749,6.85148929,216.25,216.2,41.27529882]
[1758678311141,28.22713616,216.25,216.21,0.67]
[1758678311330,28.22713616,216.25,216.22,0.67]
[1758678311667,26.0,216.27,216.23,0.67]
[1758678312456,26.0,216.27,216.24,4.6244913]
[1758678312661,26.0,216.27,216.25,0.67]
[1758678312827,26.0,216.27,216.24,4.6244913]
[1758678313031,26.0,216.27,216.26,0.67]
[1758678313260,2.22713616,216.29,216.26,0.67]
[1758678313556,159.9,216.3,216.27,0.67]
[1758678313764,159.9,216.3,216.28,0.67]
[1758678314555,159.9,216.3,216.29,5.29342225]
[1758678314755,133.9,216.3,216.29,5.29342225]
[1758678315153,133.9,216.3,216.29,0.67]
[1758678315451,133.9,216.3,216.27,4.62367349]
[1758678315660,133.9,216.3,216.27,5.29367349]
[1758678317577,133.9,216.3,216.28,0.67]
[1758678317873,133.9,216.3,216.29,0.67]
[1758678318367,2.22713616,216.33,216.29,0.67]
[1758678318571,27.42559776,216.33,216.3,0.67]
[1758678318774,27.42559776,216.33,216.31,4.62299477]
[1758678319077,26.0,216.33,216.31,4.62299477]
[1758678319443,26.0,216.33,216.32,0.67]
[1758678319644,26.0,216.33,216.3,5.29317124]
[1758678319863,26.0,216.33,216.28,36.65]
[1758678320544,26.0,216.33,216.29,0.67]
[1758678320743,26.0,216.33,216.28,35.98]
[1758678320945,26.23,216.33,216.27,35.98]
[1758678321763,30.62259692,216.33,216.27,40.60384981]
[1758678321968,26.0,216.33,216.28,0.67]
[1758678322568,30.85258353,216.33,216.28,0.67]
[1758678322762,26.0,216.33,216.3,4.6232085]
[1758678324049,159.9,216.36,216.31,0.67]
[1758678324255,0.23,216.35,216.3,4.6232085]
[1758678324463,159.9,216.36,216.31,0.67]
[1758678324960,159.9,216.36,216.32,0.67]
[1758678325151,159.9,216.36,216.29,41.25340767]
[1758678325349,0.23,216.35,216.29,41.25340767]
[1758678325746,26.0,216.33,216.25,0.67]
[1758678325973,26.23,216.33,216.25,36.63]
[1758678326261,26.23,216.33,216.25,35.96]
[1758678326465,26.23,216.33,216.26,0.67]
[1758678326637,1.42559776,216.31,216.24,0.67]
[1758678326842,26.0,216.28,216.24,4.62447968]
[1758678328140,26.0,216.28,216.23,4.62470517]
[1758678328346,26.0,216.28,216.25,0.67]
[1758678328673,26.0,216.28,216.26,0.67]
[1758678328845,26.0,216.32,216.27,0.67]
[1758678329153,1.32328137,216.31,216.27,0.67]
[1758678329349,1.32328137,216.3,216.27,5.29380108]
[1758678329561,30.62281697,216.32,216.27,5.29380108]
[1758678329761,1.32327554,216.31,216.26,4.6240385]
[1758678329973,1.32327554,216.3,216.26,5.2940385]
[1758678330169,30.62281697,216.32,216.27,0.67]
[1758678330375,1.32326315,216.31,216.28,0.67]
[1758678330556,1.32326315,216.3,216.28,0.67]
[1758678330750,30.62281697,216.32,216.28,0.67]
[1758678330951,1.3232633,216.31,216.26,0.67]
[1758678331180,1.3232633,216.3,216.27,0.67]
[1758678331476,30.62281697,216.32,216.27,0.67]
[1758678331672,1.32325414,216.31,216.27,0.67]
[1758678332263,1.55325414,216.3,216.22,0.67]
[1758678332461,1.42559776,216.29,216.22,0.67]
[1758678332659,1.65559776,216.29,216.22,0.67]
[1758678333056,1.42559776,216.27,216.2,4.6253469]
[1758678333373,26.23,216.26,216.19,0.67]
[1758678334048,26.0,216.22,216.19,0.67]
[1758678334255,26.0,216.22,216.17,0.87]
[1758678334565,26.0,216.22,216.18,0.67]
[1758678335157,30.85427745,216.25,216.19,0.67]
[1758678335576,26.0,216.25,216.19,0.67]
[1758678336181,26.0,216.25,216.2,4.6253469]
[1758678336380,26.0,216.22,216.18,4.62560656]
[1758678336572,26.0,216.22,216.18,5.29560656]
[1758678337283,0.23,216.24,216.18,5.29560656]
[1758678337492,4.85466647,216.24,216.18,5.29560656]
[1758678338062,26.0,216.21,216.17,4.82596729]
[1758678338258,26.23,216.21,216.17,0.2]
[1758678339368,133.9,216.2,216.17,0.2]
[1758678340787,133.9,216.2,216.18,0.67]
[1758678340994,133.9,216.2,216.19,0.67]
[1758678342663,133.9,216.2,216.19,5.29556084]
[1758678343764,133.9,216.27,216.19,16.85946296]
[1758678343960,1.42559776,216.3,216.2,0.67]
[1758678344165,0.23,216.31,216.2,0.67]
[1758678344166,13.42056977,216.33,216.2,14.57723872]
[1758678344392,26.0,216.3,216.21,0.67]
[1758678344579,1.65559776,216.33,216.21,0.67]
[1758678344783,1.32068968,216.32,216.22,16.18721671]
[1758678344979,26.0,216.32,216.23,0.67]
[1758678346375,26.0,216.32,216.24,16.18571956]
[1758678346578,26.0,216.32,216.25,0.67]
[1758678347165,1.42559776,216.37,216.25,36.63]
[1758678347499,27.32082557,216.36,216.26,0.67]
[1758678347804,1.32082557,216.35,216.26,0.67]
[1758678348090,0.23,216.34,216.26,0.67]
[1758678348295,1.42559776,216.32,216.24,16.18571956]
[1758678348481,1.42559776,216.32,216.25,36.63]
[1758678348789,0.23,216.33,216.26,0.67]
[1758678349787,0.23,216.33,216.27,4.62384981]
[1758678351091,4.8526178,216.33,216.27,4.62384981]
[1758678351686,0.23,216.32,216.26,4.62404001]
[1758678351885,1.65559776,216.32,216.25,4.62425048]
[1758678352079,26.0,216.3,216.25,4.62425048]
[1758678352281,26.0,216.3,216.25,5.32425048]
[1758678352473,26.0,216.3,216.26,0.7]
[1758678354091,133.9,216.29,216.26,0.7]
[1758678355398,133.9,216.29,216.26,5.32404531]
[1758678355592,133.9,216.29,216.27,0.7]
[1758678356193,133.9,216.29,216.28,4.62363602]
[1758678358303,133.9,216.29,216.27,5.32381417]
[1758678358482,133.9,216.29,216.27,4.62381417]
[1758678358880,133.9,216.29,216.27,5.32381417]
[1758678359404,133.9,216.29,216.28,0.7]
[1758678360280,133.9,216.29,216.22,16.18721671]
[1758678360594,133.9,216.29,216.22,16.88721671]
[1758678360802,133.9,216.29,216.23,0.7]
[1758678361695,133.9,216.29,216.24,16.18571956]
[1758678361881,133.9,216.29,216.25,0.7]
[1758678362404,133.9,216.29,216.26,0.7]
[1758678363900,133.9,216.29,216.24,11.56122826]
[1758678364316,133.9,216.29,216.25,0.7]
[1758678364488,133.9,216.29,216.26,0.7]
[1758678365281,134.13,216.29,216.23,0.7]
[1758678366002,133.9,216.29,216.24,4.6244913]
[1758678366292,133.9,216.29,216.25,0.7]
[1758678366904,134.13,216.28,216.22,0.7]
[1758678367081,134.13,216.28,216.18,37.03577933]
[1758678367082,1.42559776,216.26,216.19,16.18911481]
[1758678367278,1.65559776,216.26,216.19,16.88911481]
[1758678368010,1.65559776,216.26,216.21,4.62513297]
[1758678368309,1.65559776,216.26,216.21,5.32513297]
[1758678368681,1.42559776,216.26,216.21,5.32513297]
[1758678369096,32.27978126,216.26,216.21,5.32513297]
[1758678369898,32.04978126,216.26,216.18,4.62560602]
[1758678370203,6.05008906,216.24,216.18,5.32560602]
[1758678371089,0.23,216.23,216.17,4.82595983]
[1758678371293,26.0,216.21,216.17,4.8259694]
[1758678371496,26.0,216.21,216.17,5.5259694]
[1758678371808,26.0,216.21,216.17,4.8259694]
[1758678372492,0.23,216.21,216.17,4.8259694]
[1758678372692,0.23,216.21,216.17,0.2]
[1758678372896,1.65559776,216.2,216.17,0.2]
[1758678373099,26.0,216.21,216.18,0.67]
[1758678373402,26.0,216.21,216.18,4.62577481]
[1758678373603,26.0,216.21,216.18,5.29577481]
[1758678373801,26.0,216.24,216.19,0.67]
[1758678374305,135.32559776,216.28,216.18,4.62577481]
[1758678374306,26.0,216.25,216.2,0.67]
[1758678374712,26.0,216.25,216.21,0.67]
[1758678374906,26.0,216.25,216.22,0.67]
[1758678375306,26.0,216.25,216.2,0.67]
[1758678375503,26.0,216.25,216.21,0.67]
[1758678375814,26.0,216.25,216.22,0.67]
[1758678376816,133.9,216.28,216.23,5.29470517]
[1758678377010,133.9,216.28,216.24,0.67]
[1758678378096,133.9,216.28,216.25,0.67]
[1758678378324,133.9,216.28,216.26,0.67]
[1758678378834,133.9,216.35,216.27,0.67]
[1758678378996,13.90788345,216.36,216.27,0.67]
[1758678379513,26.0,216.35,216.27,0.67]
[1758678380012,2.22800842,216.32,216.27,0.67]
[1758678380217,2.22800842,216.32,216.28,0.67]
[1758678380520,2.22800842,216.32,216.29,0.72]
[1758678380918,2.45800842,216.32,216.26,4.62406362]
[1758678381102,2.22800842,216.32,216.27,0.72]
[1758678381301,2.22800842,216.32,216.28,0.72]
[1758678382621,2.22800842,216.34,216.29,0.72]
[1758678383409,2.22800842,216.34,216.3,4.6232085]
[1758678383618,2.22800842,216.36,216.31,0.72]
[1758678383922,2.22800842,216.36,216.32,0.72]
[1758678384820,2.22800842,216.36,216.33,4.62256737]
[1758678385820,28.22800842,216.38,216.33,4.62256737]
[1758678385998,1.32069736,216.37,216.33,4.62256737]
[1758678386400,1.32069736,216.37,216.33,0.72]
[1758678386821,2.22800842,216.36,216.33,0.72]
[1758678387316,2.22800842,216.36,216.27,16.18347435]
[1758678387525,2.22800842,216.36,216.31,0.72]
[1758678387823,2.22800842,216.36,216.32,0.72]
[1758678389025,2.22800842,216.36,216.32,5.34274215]
[1758678389227,2.22800842,216.36,216.33,0.72]
[1758678390320,2.22800842,216.36,216.33,5.34247082]
[1758678390518,2.22800842,216.36,216.33,4.62247082]
[1758678390736,2.22800842,216.38,216.34,0.72]
[1758678391225,2.22800842,216.38,216.35,0.72]
[1758678391426,2.22800842,216.38,216.33,4.62247082]
[1758678391617,2.22800842,216.38,216.34,0.72]
[1758678392323,164.52114123,216.4,216.34,5.34234508]
[1758678392521,2.22800842,216.38,216.34,5.34234508]
[1758678392698,2.45800842,216.38,216.33,4.62255476]
[1758678393105,2.22800842,216.38,216.34,0.72]
[1758678394322,2.22800842,216.38,216.33,4.62255476]
[1758678394628,2.22800842,216.38,216.34,0.72]
[1758678395318,2.22800842,216.38,216.31,11.55739792]
[1758678395319,6.84955179,216.38,216.32,5.34275449]
[1758678395523,7.07955179,216.38,216.32,0.72]
[1758678395709,2.22800842,216.36,216.3,5.34312688]
[1758678396942,2.22800842,216.36,216.31,0.72]
[1758678397826,2.22800842,216.36,216.32,4.62278106]
[1758678398128,2.22800842,216.36,216.33,0.72]
[1758678398727,2.22800842,216.36,216.31,4.62297745]
[1758678399028,2.45800842,216.36,216.31,4.62297745]
[1758678399833,6.84998139,216.36,216.32,0.72]
[1758678400037,26.0,216.34,216.31,4.62297745]
[1758678400210,28.22800842,216.34,216.31,4.62297745]
[1758678400715,26.0,216.34,216.31,5.34297745]
[1758678402231,26.0,216.34,216.32,0.72]
[1758678402927,162.12800842,216.37,216.31,5.34297745]
[1758678403119,166.74986562,216.37,216.31,5.34297745]
[1758678403618,166.97986562,216.37,216.31,5.34297745]
[1758678404231,162.12800842,216.37,216.31,5.34297745]
[1758678404404,133.9,216.37,216.32,0.72]
[1758678406225,133.9,216.37,216.33,4.62256737]
[1758678406426,133.9,216.37,216.34,0.72]
[1758678406810,133.9,216.37,216.35,0.72]
[1758678407028,133.9,216.37,216.36,0.72]
[1758678407429,133.9,216.37,216.34,0.72]
[1758678407622,133.9,216.37,216.35,0.72]
[1758678408329,133.9,216.37,216.36,5.34192641]
[1758678409112,133.9,216.37,216.36,4.62192641]
[1758678410123,133.9,216.37,216.35,4.62214005]
[1758678410429,133.9,216.37,216.36,0.68]
[1758678412334,133.9,216.37,216.36,5.30192641]
[1758678414955,133.9,216.44,216.36,16.85674245]
[1758678415130,133.9,216.44,216.37,0.68]
[1758678416047,0.23,216.43,216.37,0.68]
[1758678416347,2.22800842,216.4,216.34,36.56]
[1758678417231,2.22800842,216.4,216.35,0.68]
[1758678417827,6.84910283,216.4,216.35,0.68]
[1758678418536,6.84910283,216.4,216.34,40.5023537]
[1758678418740,30.85090329,216.41,216.35,0.68]
[1758678419327,30.85090329,216.41,216.35,5.30199608]
[1758678421520,26.0,216.4,216.36,0.68]
[1758678421719,26.0,216.4,216.37,0.68]
[1758678421956,0.23,216.39,216.33,0.68]
[1758678422137,133.9,216.38,216.29,11.55816069]